[Event "Early-Titled-Tuesday-Blitz-April-02-2024"]
[Site "Chess.com"]
[Date "2024.04.02"]
[Round "3"]
[White "Macron20hTF1"]
[Black "ilqar_74"]
[Result "1/2-1/2"]
[WhiteElo "2571"]
[BlackElo "2804"]
[TimeControl "180+1"]
[EndTime "8:28:42 PDT"]
[Termination "Game drawn - insufficient material"]

1. Nf3 {[%clk 0:03:00.9]} 1... Nf6 {[%clk 0:02:59.5]} 2. c4 {[%clk 0:03:01]}
2... e6 {[%clk 0:02:59]} 3. Nc3 {[%clk 0:03:00.9]} 3... d5 {[%clk 0:02:59.5]} 4.
e3 {[%clk 0:03:01.6]} 4... Be7 {[%clk 0:02:59.1]} 5. b3 {[%clk 0:03:01.7]} 5...
O-O {[%clk 0:02:59.2]} 6. Bb2 {[%clk 0:03:02.4]} 6... dxc4 {[%clk 0:02:59.6]} 7.
Bxc4 {[%clk 0:03:02]} 7... c5 {[%clk 0:03:00.2]} 8. O-O {[%clk 0:03:01.1]} 8...
Nc6 {[%clk 0:02:59.4]} 9. d3 {[%clk 0:02:59.8]} 9... a6 {[%clk 0:02:59.2]} 10.
a4 {[%clk 0:02:59.8]} 10... Na5 {[%clk 0:02:59]} 11. e4 {[%clk 0:02:58.4]} 11...
Nxc4 {[%clk 0:02:58.5]} 12. dxc4 {[%clk 0:02:52.1]} 12... b6 {[%clk 0:02:30.3]}
13. e5 {[%clk 0:02:37.8]} 13... Ne8 {[%clk 0:02:29.6]} 14. Ne4 {[%clk
0:02:27.4]} 14... Bb7 {[%clk 0:02:26.4]} 15. Qe2 {[%clk 0:02:27.6]} 15... Qc7
{[%clk 0:02:24.5]} 16. h4 {[%clk 0:02:19.5]} 16... Qc6 {[%clk 0:02:21.6]} 17.
Rfe1 {[%clk 0:02:12.9]} 17... Rd8 {[%clk 0:02:16.3]} 18. h5 {[%clk 0:02:04.4]}
18... Qxe4 {[%clk 0:02:10.4]} 19. Qxe4 {[%clk 0:02:04.1]} 19... Bxe4 {[%clk
0:02:11]} 20. Rxe4 {[%clk 0:02:05]} 20... Nc7 {[%clk 0:02:04.1]} 21. h6 {[%clk
0:01:59]} 21... g6 {[%clk 0:02:00.2]} 22. a5 {[%clk 0:01:54.9]} 22... b5 {[%clk
0:01:58]} 23. cxb5 {[%clk 0:01:55.4]} 23... Nxb5 {[%clk 0:01:58.9]} 24. Rc1
{[%clk 0:01:49]} 24... Rd3 {[%clk 0:01:53]} 25. Re3 {[%clk 0:01:46.1]} 25...
Rfd8 {[%clk 0:01:52]} 26. Rce1 {[%clk 0:01:31.7]} 26... Rxe3 {[%clk 0:01:45.4]}
27. Rxe3 {[%clk 0:01:25.8]} 27... Bf8 {[%clk 0:01:45.3]} 28. Re4 {[%clk
0:01:10.9]} 28... Bxh6 {[%clk 0:01:42]} 29. b4 {[%clk 0:01:11.1]} 29... cxb4
{[%clk 0:01:40.5]} 30. Rxb4 {[%clk 0:01:12]} 30... Bf8 {[%clk 0:01:40.8]} 31.
Rc4 {[%clk 0:01:09.9]} 31... Ra8 {[%clk 0:01:24]} 32. Rc6 {[%clk 0:01:07]} 32...
Bb4 {[%clk 0:01:21]} 33. Ng5 {[%clk 0:00:58.4]} 33... Bxa5 {[%clk 0:01:15.9]}
34. Ne4 {[%clk 0:00:58.9]} 34... Bb4 {[%clk 0:00:58.5]} 35. Rb6 {[%clk
0:00:56.8]} 35... Bf8 {[%clk 0:00:50.8]} 36. Nd6 {[%clk 0:00:51.7]} 36... Nxd6
{[%clk 0:00:49.4]} 37. exd6 {[%clk 0:00:52.6]} 37... Rd8 {[%clk 0:00:48.1]} 38.
Ba3 {[%clk 0:00:48.2]} 38... a5 {[%clk 0:00:46.7]} 39. Ra6 {[%clk 0:00:47]}
39... f6 {[%clk 0:00:44.4]} 40. f4 {[%clk 0:00:28.2]} 40... Kf7 {[%clk
0:00:44.1]} 41. Ra7+ {[%clk 0:00:23.5]} 41... Kg8 {[%clk 0:00:41.6]} 42. Ra6
{[%clk 0:00:19]} 42... Rd7 {[%clk 0:00:40.9]} 43. Kf2 {[%clk 0:00:15.5]} 43...
Kf7 {[%clk 0:00:40.7]} 44. Kf3 {[%clk 0:00:16]} 44... e5 {[%clk 0:00:39.4]} 45.
fxe5 {[%clk 0:00:15.5]} 45... fxe5 {[%clk 0:00:40.3]} 46. Ke4 {[%clk 0:00:16.1]}
46... Kf6 {[%clk 0:00:25.1]} 47. Rxa5 {[%clk 0:00:15.2]} 47... Bxd6 {[%clk
0:00:19.9]} 48. Ra6 {[%clk 0:00:13.4]} 48... Ke7 {[%clk 0:00:19.6]} 49. Rxd6
{[%clk 0:00:13.7]} 49... Rxd6 {[%clk 0:00:15.3]} 50. Kxe5 {[%clk 0:00:14.1]}
50... Kf7 {[%clk 0:00:15.7]} 51. Bxd6 {[%clk 0:00:15]} 51... g5 {[%clk
0:00:16.2]} 52. Kf5 {[%clk 0:00:14.6]} 52... h6 {[%clk 0:00:16.7]} 53. g4 {[%clk
0:00:14.3]} 53... Kg7 {[%clk 0:00:17.2]} 54. Be5+ {[%clk 0:00:14.4]} 54... Kh7
{[%clk 0:00:17.7]} 55. Kf6 {[%clk 0:00:14.3]} 55... h5 {[%clk 0:00:14.7]} 56.
gxh5 {[%clk 0:00:05.1]} 56... Kh6 {[%clk 0:00:14]} 57. Kf5 {[%clk 0:00:05.7]}
57... Kxh5 {[%clk 0:00:14.5]} 58. Bd6 {[%clk 0:00:05.5]} 58... g4 {[%clk
0:00:15.4]} 59. Bc7 {[%clk 0:00:06.1]} 59... g3 {[%clk 0:00:16.3]} 60. Bxg3
{[%clk 0:00:06.3]} 1/2-1/2

[Event "Early-Titled-Tuesday-Blitz-April-02-2024"]
[Site "Chess.com"]
[Date "2024.04.02"]
[Round "3"]
[White "guillembaches"]
[Black "Imagine_Drag0n"]
[Result "0-1"]
[WhiteElo "2547"]
[BlackElo "2799"]
[TimeControl "180+1"]
[EndTime "8:28:42 PDT"]
[Termination "Imagine_Drag0n won on time"]

1. d4 {[%clk 0:03:00.9]} 1... Nf6 {[%clk 0:02:59.9]} 2. Nf3 {[%clk 0:03:01.5]}
2... d5 {[%clk 0:02:59.5]} 3. Bg5 {[%clk 0:03:02]} 3... Nbd7 {[%clk 0:02:49.5]}
4. Nbd2 {[%clk 0:03:01.6]} 4... h6 {[%clk 0:02:48.9]} 5. Bh4 {[%clk 0:03:01.4]}
5... g5 {[%clk 0:02:45.7]} 6. Bg3 {[%clk 0:03:01.1]} 6... e6 {[%clk 0:02:45.8]}
7. e3 {[%clk 0:02:59.8]} 7... Bd6 {[%clk 0:02:44.9]} 8. Bd3 {[%clk 0:02:57.1]}
8... Qe7 {[%clk 0:02:43.7]} 9. c3 {[%clk 0:02:46.9]} 9... g4 {[%clk 0:02:20.8]}
10. Ne5 {[%clk 0:02:42.4]} 10... h5 {[%clk 0:02:20.7]} 11. Qe2 {[%clk
0:02:28.3]} 11... h4 {[%clk 0:01:50.2]} 12. Bf4 {[%clk 0:02:27.4]} 12... Bxe5
{[%clk 0:01:50.4]} 13. dxe5 {[%clk 0:02:21.7]} 13... Nh5 {[%clk 0:01:50]} 14.
Qxg4 {[%clk 0:02:14.8]} 14... Nxf4 {[%clk 0:01:49.8]} 15. exf4 {[%clk
0:02:08.4]} 15... Nc5 {[%clk 0:01:49.6]} 16. Bc2 {[%clk 0:02:02.7]} 16... Bd7
{[%clk 0:01:49.1]} 17. Nb3 {[%clk 0:01:55.3]} 17... O-O-O {[%clk 0:01:24.8]} 18.
O-O-O {[%clk 0:01:46.8]} 18... Nxb3+ {[%clk 0:00:57.5]} 19. Bxb3 {[%clk
0:01:36.4]} 19... a5 {[%clk 0:00:56.8]} 20. a3 {[%clk 0:01:30.1]} 20... Qc5
{[%clk 0:00:56.3]} 21. Rd4 {[%clk 0:01:22.8]} 21... Qb6 {[%clk 0:00:55.1]} 22.
Bc2 {[%clk 0:01:19.3]} 22... c5 {[%clk 0:00:54.9]} 23. Rd2 {[%clk 0:01:18.8]}
23... Bc6 {[%clk 0:00:50.5]} 24. Rhd1 {[%clk 0:00:57.2]} 24... Kb8 {[%clk
0:00:49.5]} 25. Qf3 {[%clk 0:00:55.3]} 25... Rd7 {[%clk 0:00:33.3]} 26. g3
{[%clk 0:00:47]} 26... Rhd8 {[%clk 0:00:27.4]} 27. Qe2 {[%clk 0:00:40.6]} 27...
Bb5 {[%clk 0:00:25]} 28. Bd3 {[%clk 0:00:38.8]} 28... Ba4 {[%clk 0:00:25]} 29.
Bc2 {[%clk 0:00:39]} 29... Bb5 {[%clk 0:00:24.5]} 30. Bd3 {[%clk 0:00:39.3]}
30... c4 {[%clk 0:00:09.8]} 31. Bc2 {[%clk 0:00:35.9]} 31... d4 {[%clk
0:00:08.7]} 32. cxd4 {[%clk 0:00:18.7]} 32... c3 {[%clk 0:00:08.5]} 33. Rd3
{[%clk 0:00:15.5]} 33... Bxd3 {[%clk 0:00:07.9]} 34. Bxd3 {[%clk 0:00:09.2]}
34... cxb2+ {[%clk 0:00:05.3]} 35. Qxb2 {[%clk 0:00:10.1]} 35... Qc6+ {[%clk
0:00:05]} 36. Kb1 {[%clk 0:00:09.9]} 36... Rxd4 {[%clk 0:00:04.7]} 37. Rc1
{[%clk 0:00:10]} 37... Qd7 {[%clk 0:00:04.2]} 38. Bc2 {[%clk 0:00:10.2]} 38...
hxg3 {[%clk 0:00:04.6]} 39. hxg3 {[%clk 0:00:09.7]} 39... Rd2 {[%clk 0:00:04.8]}
40. Ka1 {[%clk 0:00:09.2]} 40... Rxf2 {[%clk 0:00:04.8]} 41. Rb1 {[%clk
0:00:09]} 41... Qd4 {[%clk 0:00:04.3]} 42. Be4 {[%clk 0:00:08.7]} 42... Qxb2+
{[%clk 0:00:04.3]} 43. Rxb2 {[%clk 0:00:09.6]} 43... Rd1+ {[%clk 0:00:03.6]} 44.
Ka2 {[%clk 0:00:09.9]} 44... Rxb2+ {[%clk 0:00:04.5]} 45. Kxb2 {[%clk
0:00:10.7]} 45... Rd2+ {[%clk 0:00:05.2]} 46. Kc3 {[%clk 0:00:11.2]} 46... Re2
{[%clk 0:00:05.6]} 47. Kd4 {[%clk 0:00:11.4]} 47... Rd2+ {[%clk 0:00:05.5]} 48.
Kc5 {[%clk 0:00:11.2]} 48... Kc7 {[%clk 0:00:05.2]} 49. g4 {[%clk 0:00:11.1]}
49... Rf2 {[%clk 0:00:05.4]} 50. Kd4 {[%clk 0:00:10.5]} 50... Rxf4 {[%clk
0:00:05.2]} 51. Ke3 {[%clk 0:00:11.4]} 51... Rxg4 {[%clk 0:00:05.5]} 0-1

[Event "Early-Titled-Tuesday-Blitz-April-02-2024"]
[Site "Chess.com"]
[Date "2024.04.02"]
[Round "3"]
[White "Massakru"]
[Black "IshviAggarwal"]
[Result "1-0"]
[WhiteElo "2386"]
[BlackElo "2161"]
[TimeControl "180+1"]
[EndTime "8:28:42 PDT"]
[Termination "Massakru won on time"]

1. e4 {[%clk 0:03:00.9]} 1... e6 {[%clk 0:02:56.3]} 2. d4 {[%clk 0:03:00.4]}
2... d5 {[%clk 0:02:57.1]} 3. Nc3 {[%clk 0:03:01.1]} 3... Nf6 {[%clk 0:02:56.8]}
4. e5 {[%clk 0:03:00.9]} 4... Nfd7 {[%clk 0:02:56.9]} 5. f4 {[%clk 0:03:01.5]}
5... a6 {[%clk 0:02:57.2]} 6. Nf3 {[%clk 0:03:01.6]} 6... c5 {[%clk 0:02:57.9]}
7. Be3 {[%clk 0:03:01.6]} 7... Nc6 {[%clk 0:02:58.5]} 8. Qd2 {[%clk 0:03:01.7]}
8... b5 {[%clk 0:02:54.3]} 9. a3 {[%clk 0:03:00.8]} 9... Qb6 {[%clk 0:02:52.5]}
10. Nd1 {[%clk 0:02:57.8]} 10... cxd4 {[%clk 0:02:51]} 11. Nxd4 {[%clk
0:02:57.8]} 11... Nc5 {[%clk 0:02:37.6]} 12. Nxc6 {[%clk 0:02:28.3]} 12... Qxc6
{[%clk 0:02:34.3]} 13. Nf2 {[%clk 0:02:28.2]} 13... Bb7 {[%clk 0:02:30.8]} 14.
Bd4 {[%clk 0:02:24.7]} 14... Rc8 {[%clk 0:02:25.7]} 15. Be2 {[%clk 0:02:17.8]}
15... Nd7 {[%clk 0:02:18.4]} 16. c3 {[%clk 0:02:16.3]} 16... Nb6 {[%clk
0:02:18.8]} 17. O-O {[%clk 0:02:13.2]} 17... Nc4 {[%clk 0:02:16.4]} 18. Bxc4
{[%clk 0:02:03]} 18... dxc4 {[%clk 0:02:17.3]} 19. Ng4 {[%clk 0:02:02.5]} 19...
Bc5 {[%clk 0:02:07.4]} 20. Bxc5 {[%clk 0:01:56.8]} 20... Qxc5+ {[%clk
0:02:08.3]} 21. Qf2 {[%clk 0:01:52.1]} 21... Qxf2+ {[%clk 0:01:54.7]} 22. Kxf2
{[%clk 0:01:50.4]} 22... Ke7 {[%clk 0:01:54.8]} 23. Rad1 {[%clk 0:01:48.4]}
23... Rcd8 {[%clk 0:01:55.1]} 24. Ne3 {[%clk 0:01:48.1]} 24... Rd3 {[%clk
0:01:53.2]} 25. Rxd3 {[%clk 0:01:41.7]} 25... cxd3 {[%clk 0:01:54.1]} 26. Ke1
{[%clk 0:01:40.5]} 26... f6 {[%clk 0:01:43.1]} 27. exf6+ {[%clk 0:01:39.1]}
27... gxf6 {[%clk 0:01:44]} 28. Kd2 {[%clk 0:01:36.8]} 28... Rd8 {[%clk
0:01:40]} 29. g4 {[%clk 0:01:32]} 29... e5 {[%clk 0:01:17.9]} 30. fxe5 {[%clk
0:01:27.2]} 30... fxe5 {[%clk 0:01:18.8]} 31. Rf5 {[%clk 0:01:16.4]} 31... Ke6
{[%clk 0:01:15]} 32. Rh5 {[%clk 0:01:14.7]} 32... Be4 {[%clk 0:01:12.8]} 33.
Rh6+ {[%clk 0:01:13.5]} 33... Bg6 {[%clk 0:01:12.2]} 34. h4 {[%clk 0:01:10.6]}
34... Kf7 {[%clk 0:01:08.4]} 35. h5 {[%clk 0:01:08.2]} 35... Kg7 {[%clk
0:01:04]} 36. g5 {[%clk 0:01:08.1]} 36... Be4 {[%clk 0:01:01.5]} 37. Rxa6 {[%clk
0:01:07.1]} 37... Rf8 {[%clk 0:01:02.2]} 38. Ra7+ {[%clk 0:01:06.8]} 38... Kg8
{[%clk 0:00:52.4]} 39. Ng4 {[%clk 0:01:06.9]} 39... Bf5 {[%clk 0:00:39.9]} 40.
Nxe5 {[%clk 0:00:59.7]} 40... Re8 {[%clk 0:00:38.3]} 41. Nf7 {[%clk 0:00:48.1]}
41... Re2+ {[%clk 0:00:34.5]} 42. Kd1 {[%clk 0:00:48.1]} 42... Be4 {[%clk
0:00:20.4]} 43. Nh6+ {[%clk 0:00:42]} 43... Kf8 {[%clk 0:00:18.7]} 44. Rf7+
{[%clk 0:00:38.2]} 44... Ke8 {[%clk 0:00:19.3]} 45. Rf4 {[%clk 0:00:32.7]} 45...
Ke7 {[%clk 0:00:14.4]} 46. Ng8+ {[%clk 0:00:28.3]} 46... Ke6 {[%clk 0:00:14.1]}
47. Nf6 {[%clk 0:00:28.3]} 47... Bc6 {[%clk 0:00:06.5]} 48. Nxh7 {[%clk
0:00:26.3]} 48... Rxb2 {[%clk 0:00:05.1]} 49. g6 {[%clk 0:00:25.1]} 49... b4
{[%clk 0:00:04.5]} 50. Rf6+ {[%clk 0:00:19]} 50... Kd5 {[%clk 0:00:02.4]} 51.
c4+ {[%clk 0:00:16.6]} 1-0

[Event "Early-Titled-Tuesday-Blitz-April-02-2024"]
[Site "Chess.com"]
[Date "2024.04.02"]
[Round "3"]
[White "GoltsevDmitry2000"]
[Black "Truequitos"]
[Result "1-0"]
[WhiteElo "2817"]
[BlackElo "2564"]
[TimeControl "180+1"]
[EndTime "8:28:43 PDT"]
[Termination "GoltsevDmitry2000 won on time"]

1. e4 {[%clk 0:02:48.6]} 1... e6 {[%clk 0:02:57.2]} 2. d4 {[%clk 0:02:48.7]}
2... d5 {[%clk 0:02:57.4]} 3. exd5 {[%clk 0:02:49.6]} 3... exd5 {[%clk
0:02:57.4]} 4. Nf3 {[%clk 0:02:44.3]} 4... Bd6 {[%clk 0:02:57.3]} 5. c4 {[%clk
0:02:43.9]} 5... c6 {[%clk 0:02:57]} 6. Nc3 {[%clk 0:02:42.8]} 6... Ne7 {[%clk
0:02:57.2]} 7. Bd3 {[%clk 0:02:42.1]} 7... O-O {[%clk 0:02:54.6]} 8. O-O {[%clk
0:02:42.1]} 8... Bf5 {[%clk 0:02:52.6]} 9. Re1 {[%clk 0:02:38.9]} 9... Bg6
{[%clk 0:02:50.1]} 10. Bg5 {[%clk 0:02:36.3]} 10... f6 {[%clk 0:02:48.2]} 11.
Bh4 {[%clk 0:02:34.5]} 11... Na6 {[%clk 0:02:40.1]} 12. a3 {[%clk 0:02:34.4]}
12... Qd7 {[%clk 0:02:37.8]} 13. b4 {[%clk 0:02:33.2]} 13... Rae8 {[%clk
0:02:36.1]} 14. Qd2 {[%clk 0:02:25.7]} 14... Kh8 {[%clk 0:02:32.3]} 15. c5
{[%clk 0:02:21.3]} 15... Bb8 {[%clk 0:02:28.4]} 16. Bg3 {[%clk 0:02:16.5]} 16...
Nf5 {[%clk 0:02:13.7]} 17. b5 {[%clk 0:02:06.6]} 17... Nc7 {[%clk 0:02:09.7]}
18. b6 {[%clk 0:02:01.5]} 18... axb6 {[%clk 0:02:03.3]} 19. cxb6 {[%clk
0:02:02.4]} 19... Ne6 {[%clk 0:02:03.7]} 20. Bf1 {[%clk 0:01:55.4]} 20... Nd6
{[%clk 0:01:54.6]} 21. a4 {[%clk 0:01:52.5]} 21... Ne4 {[%clk 0:01:54.8]} 22.
Qb2 {[%clk 0:01:48.2]} 22... Nf4 {[%clk 0:01:49.1]} 23. a5 {[%clk 0:01:39.5]}
23... Qg4 {[%clk 0:01:27.7]} 24. Na4 {[%clk 0:01:24.5]} 24... h5 {[%clk
0:00:53.4]} 25. Nc5 {[%clk 0:01:10.7]} 25... Nxc5 {[%clk 0:00:48.8]} 26. dxc5
{[%clk 0:01:11.6]} 26... Be4 {[%clk 0:00:47.4]} 27. Re3 {[%clk 0:01:00.5]} 27...
Ne6 {[%clk 0:00:35.3]} 28. Qa3 {[%clk 0:00:52.8]} 28... Bxg3 {[%clk 0:00:26.9]}
29. hxg3 {[%clk 0:00:48.8]} 29... Ra8 {[%clk 0:00:26.9]} 30. a6 {[%clk
0:00:28.7]} 30... bxa6 {[%clk 0:00:26.4]} 31. Qb4 {[%clk 0:00:28.1]} 31... Bxf3
{[%clk 0:00:23.9]} 32. Ra4 {[%clk 0:00:24]} 32... Qxb4 {[%clk 0:00:19.6]} 33.
Rxb4 {[%clk 0:00:24.9]} 33... Be4 {[%clk 0:00:18.6]} 34. f3 {[%clk 0:00:24.6]}
34... Bf5 {[%clk 0:00:19]} 35. g4 {[%clk 0:00:24.4]} 35... hxg4 {[%clk
0:00:18.5]} 36. fxg4 {[%clk 0:00:25.3]} 36... d4 {[%clk 0:00:17.6]} 37. gxf5
{[%clk 0:00:23.5]} 37... dxe3 {[%clk 0:00:17.4]} 38. fxe6 {[%clk 0:00:23.5]}
38... f5 {[%clk 0:00:15]} 39. b7 {[%clk 0:00:21]} 39... Rab8 {[%clk 0:00:15.1]}
40. Bxa6 {[%clk 0:00:21.4]} 40... Rfe8 {[%clk 0:00:15.4]} 41. Kf1 {[%clk
0:00:18.5]} 41... g5 {[%clk 0:00:12.4]} 42. Ke2 {[%clk 0:00:18.1]} 42... Rxe6
{[%clk 0:00:11.5]} 43. Rd4 {[%clk 0:00:18.1]} 43... Ree8 {[%clk 0:00:10.6]} 44.
Rd6 {[%clk 0:00:16.8]} 44... f4 {[%clk 0:00:08.9]} 45. Rxc6 {[%clk 0:00:16.7]}
45... Kg7 {[%clk 0:00:08.7]} 46. Rd6 {[%clk 0:00:16.6]} 46... g4 {[%clk
0:00:08.7]} 47. c6 {[%clk 0:00:16.4]} 47... f3+ {[%clk 0:00:09.3]} 48. gxf3
{[%clk 0:00:17.3]} 48... g3 {[%clk 0:00:07.3]} 49. c7 {[%clk 0:00:16]} 49... g2
{[%clk 0:00:01.6]} 50. Rd1 {[%clk 0:00:16.3]} 50... Kf6 {[%clk 0:00:01.6]} 51.
c8=Q {[%clk 0:00:15.9]} 51... Rbxc8 {[%clk 0:00:01.7]} 52. bxc8=Q {[%clk
0:00:16.8]} 52... Rxc8 {[%clk 0:00:01.9]} 53. Bxc8 {[%clk 0:00:17.7]} 53... Ke5
{[%clk 0:00:02.5]} 54. Rg1 {[%clk 0:00:17.7]} 54... Kf4 {[%clk 0:00:03.4]} 55.
Rxg2 {[%clk 0:00:18.6]} 1-0

[Event "Early-Titled-Tuesday-Blitz-April-02-2024"]
[Site "Chess.com"]
[Date "2024.04.02"]
[Round "3"]
[White "lefonghua"]
[Black "MarijaKuznecova"]
[Result "1-0"]
[WhiteElo "2611"]
[BlackElo "2405"]
[TimeControl "180+1"]
[EndTime "8:28:44 PDT"]
[Termination "lefonghua won by checkmate"]

1. d4 {[%clk 0:03:00.9]} 1... Nf6 {[%clk 0:02:59.6]} 2. c4 {[%clk 0:03:01.3]}
2... c5 {[%clk 0:02:59.6]} 3. d5 {[%clk 0:03:01.3]} 3... b5 {[%clk 0:02:59.8]}
4. cxb5 {[%clk 0:03:01.9]} 4... a6 {[%clk 0:02:59.9]} 5. b6 {[%clk 0:03:02.5]}
5... e6 {[%clk 0:02:56.9]} 6. Nc3 {[%clk 0:03:02.4]} 6... Nxd5 {[%clk
0:02:57.4]} 7. Nxd5 {[%clk 0:03:03.3]} 7... exd5 {[%clk 0:02:58.1]} 8. Qxd5
{[%clk 0:03:03.8]} 8... Nc6 {[%clk 0:02:58.8]} 9. Nf3 {[%clk 0:03:03.3]} 9...
Rb8 {[%clk 0:02:46.6]} 10. e4 {[%clk 0:03:02.3]} 10... Be7 {[%clk 0:02:45.6]}
11. Bc4 {[%clk 0:03:02.1]} 11... O-O {[%clk 0:02:45.8]} 12. O-O {[%clk 0:03:01]}
12... Rxb6 {[%clk 0:02:44.9]} 13. Bd2 {[%clk 0:03:01]} 13... Bb7 {[%clk
0:02:39]} 14. Qh5 {[%clk 0:02:48.8]} 14... Rxb2 {[%clk 0:02:07.6]} 15. Bc3
{[%clk 0:02:27.7]} 15... Rc2 {[%clk 0:02:05.2]} 16. Rfc1 {[%clk 0:02:18.8]}
16... Rxc1+ {[%clk 0:02:03.2]} 17. Rxc1 {[%clk 0:02:19.7]} 17... Na5 {[%clk
0:01:53.7]} 18. Qg4 {[%clk 0:01:54.1]} 18... g6 {[%clk 0:01:32.1]} 19. Bxa5
{[%clk 0:01:51.7]} 19... Qxa5 {[%clk 0:01:29.8]} 20. Qxd7 {[%clk 0:01:51.2]}
20... Qa3 {[%clk 0:00:40.4]} 21. Rf1 {[%clk 0:01:45.9]} 21... Bxe4 {[%clk
0:00:28.8]} 22. Qxe7 {[%clk 0:01:41.2]} 22... Bxf3 {[%clk 0:00:29.3]} 23. gxf3
{[%clk 0:01:42.1]} 23... Qxf3 {[%clk 0:00:29.1]} 24. Qe2 {[%clk 0:01:21.8]}
24... Qf4 {[%clk 0:00:20]} 25. Rd1 {[%clk 0:01:17.5]} 25... h5 {[%clk 0:00:16]}
26. h3 {[%clk 0:00:37.4]} 26... Qf5 {[%clk 0:00:13.4]} 27. Rd3 {[%clk
0:00:27.4]} 27... Rb8 {[%clk 0:00:10.1]} 28. Rf3 {[%clk 0:00:16.9]} 28... Qg5+
{[%clk 0:00:09]} 29. Kh2 {[%clk 0:00:15.5]} 29... Rf8 {[%clk 0:00:07.7]} 30. Qe4
{[%clk 0:00:13.5]} 30... Kg7 {[%clk 0:00:05.4]} 31. Qf4 {[%clk 0:00:11]} 31...
Qe7 {[%clk 0:00:04.8]} 32. Rg3 {[%clk 0:00:10.2]} 32... h4 {[%clk 0:00:04.2]}
33. Rf3 {[%clk 0:00:08.8]} 33... f6 {[%clk 0:00:03.4]} 34. Kg2 {[%clk
0:00:08.6]} 34... Qd7 {[%clk 0:00:03.5]} 35. Qg4 {[%clk 0:00:07]} 35... Qe7
{[%clk 0:00:03.6]} 36. Re3 {[%clk 0:00:07.1]} 36... Qd8 {[%clk 0:00:03.2]} 37.
Qf3 {[%clk 0:00:05.7]} 37... f5 {[%clk 0:00:03]} 38. Bd5 {[%clk 0:00:04.9]}
38... f4 {[%clk 0:00:02.4]} 39. Re6 {[%clk 0:00:05.3]} 39... Qg5+ {[%clk
0:00:02.2]} 40. Kh2 {[%clk 0:00:05.8]} 40... Rb8 {[%clk 0:00:02]} 41. Qe4 {[%clk
0:00:06]} 41... Rb2 {[%clk 0:00:01.5]} 42. Re7+ {[%clk 0:00:06.4]} 42... Kh6
{[%clk 0:00:01.4]} 43. Qf3 {[%clk 0:00:02.1]} 43... Qg3+ {[%clk 0:00:01.8]} 44.
Qxg3 {[%clk 0:00:01.8]} 44... hxg3+ {[%clk 0:00:02.7]} 45. Kg2 {[%clk
0:00:02.4]} 45... Rxf2+ {[%clk 0:00:03.1]} 46. Kg1 {[%clk 0:00:03.1]} 46... Rd2
{[%clk 0:00:03]} 47. Bb3 {[%clk 0:00:03.3]} 47... Kg5 {[%clk 0:00:02.9]} 48.
Re5+ {[%clk 0:00:01.9]} 48... Kh4 {[%clk 0:00:02.8]} 49. Rxc5 {[%clk 0:00:02.8]}
49... Kxh3 {[%clk 0:00:03.3]} 50. Be6+ {[%clk 0:00:02.6]} 50... Kh4 {[%clk
0:00:03.5]} 51. Rc3 {[%clk 0:00:03.5]} 51... g5 {[%clk 0:00:02.7]} 52. Rc8
{[%clk 0:00:02.9]} 52... Rd1+ {[%clk 0:00:03.1]} 53. Kg2 {[%clk 0:00:02.9]}
53... Rd2+ {[%clk 0:00:03.9]} 54. Kf3 {[%clk 0:00:03.1]} 54... Rf2+ {[%clk
0:00:04.2]} 55. Ke4 {[%clk 0:00:03.8]} 55... g2 {[%clk 0:00:04.7]} 56. Rh8+
{[%clk 0:00:03.2]} 56... Kg3 {[%clk 0:00:05.3]} 57. Rh3# {[%clk 0:00:03.9]} 1-0